{"text_format":"3","workbook":"xlsx","n_sheets":2,"sheets":["DATI CRESCITA","GRAFICO CRESCITA"],"not_rendered":{"charts":1,"defined_names":3},"read":"whole","date_system":"1900"}

{"sheet":"DATI CRESCITA","index":0,"n_rows":23,"n_cols":8,"rows_kept":23,"merged":[[0,1,0,7],[1,2,1,7]]}
[null,"Crescita del bambino "]
[null,"Nome del bambino:","Nome"]
[null,"Età","Chili","Etti","Peso (kg)","Peso\n(percentile)","Altezza (cm)","Altezza\n(percentile)"]
[null,"Alla nascita",7,null,{"$f":"IF(COUNT(Dati[[#This Row],[Chili]:[Etti]])>0,Dati[[#This Row],[Chili]]+(Dati[[#This Row],[Etti]]/16),NA())","v":7},40,19.5,70]
[null,"4 giorni",6,8,{"$f":"IF(COUNT(Dati[[#This Row],[Chili]:[Etti]])>0,Dati[[#This Row],[Chili]]+(Dati[[#This Row],[Etti]]/16),NA())","v":6.5},41,19.5,70]
[null,"7 giorni",6,4.8,{"$f":"IF(COUNT(Dati[[#This Row],[Chili]:[Etti]])>0,Dati[[#This Row],[Chili]]+(Dati[[#This Row],[Etti]]/16),NA())","v":6.3},42,20,71]
[null,"11 giorni",6,9.6,{"$f":"IF(COUNT(Dati[[#This Row],[Chili]:[Etti]])>0,Dati[[#This Row],[Chili]]+(Dati[[#This Row],[Etti]]/16),NA())","v":6.6},43,20,71]
[null,"14 giorni",7,null,{"$f":"IF(COUNT(Dati[[#This Row],[Chili]:[Etti]])>0,Dati[[#This Row],[Chili]]+(Dati[[#This Row],[Etti]]/16),NA())","v":7},44,20,71]
[null,"18 giorni",7,12,{"$f":"IF(COUNT(Dati[[#This Row],[Chili]:[Etti]])>0,Dati[[#This Row],[Chili]]+(Dati[[#This Row],[Etti]]/16),NA())","v":7.75},45,21,72]
[null,"21 giorni",8,8,{"$f":"IF(COUNT(Dati[[#This Row],[Chili]:[Etti]])>0,Dati[[#This Row],[Chili]]+(Dati[[#This Row],[Etti]]/16),NA())","v":8.5},46,21,72]
[null,"25 giorni",null,null,{"$f":"IF(COUNT(Dati[[#This Row],[Chili]:[Etti]])>0,Dati[[#This Row],[Chili]]+(Dati[[#This Row],[Etti]]/16),NA())","v":{"$error":"#N/A"}}]
[null,"28 giorni",null,null,{"$f":"IF(COUNT(Dati[[#This Row],[Chili]:[Etti]])>0,Dati[[#This Row],[Chili]]+(Dati[[#This Row],[Etti]]/16),NA())","v":{"$error":"#N/A"}}]
[null,"5 settimane",null,null,{"$f":"IF(COUNT(Dati[[#This Row],[Chili]:[Etti]])>0,Dati[[#This Row],[Chili]]+(Dati[[#This Row],[Etti]]/16),NA())","v":{"$error":"#N/A"}}]
[null,"6 settimane",null,null,{"$f":"IF(COUNT(Dati[[#This Row],[Chili]:[Etti]])>0,Dati[[#This Row],[Chili]]+(Dati[[#This Row],[Etti]]/16),NA())","v":{"$error":"#N/A"}}]
[null,"7 settimane",null,null,{"$f":"IF(COUNT(Dati[[#This Row],[Chili]:[Etti]])>0,Dati[[#This Row],[Chili]]+(Dati[[#This Row],[Etti]]/16),NA())","v":{"$error":"#N/A"}}]
[null,"2 mesi",null,null,{"$f":"IF(COUNT(Dati[[#This Row],[Chili]:[Etti]])>0,Dati[[#This Row],[Chili]]+(Dati[[#This Row],[Etti]]/16),NA())","v":{"$error":"#N/A"}}]
[null,"3 mesi",null,null,{"$f":"IF(COUNT(Dati[[#This Row],[Chili]:[Etti]])>0,Dati[[#This Row],[Chili]]+(Dati[[#This Row],[Etti]]/16),NA())","v":{"$error":"#N/A"}}]
[null,"6 mesi",null,null,{"$f":"IF(COUNT(Dati[[#This Row],[Chili]:[Etti]])>0,Dati[[#This Row],[Chili]]+(Dati[[#This Row],[Etti]]/16),NA())","v":{"$error":"#N/A"}}]
[null,"9 mesi",null,null,{"$f":"IF(COUNT(Dati[[#This Row],[Chili]:[Etti]])>0,Dati[[#This Row],[Chili]]+(Dati[[#This Row],[Etti]]/16),NA())","v":{"$error":"#N/A"}}]
[null,"12 mesi",null,null,{"$f":"IF(COUNT(Dati[[#This Row],[Chili]:[Etti]])>0,Dati[[#This Row],[Chili]]+(Dati[[#This Row],[Etti]]/16),NA())","v":{"$error":"#N/A"}}]
[null,"18 mesi",null,null,{"$f":"IF(COUNT(Dati[[#This Row],[Chili]:[Etti]])>0,Dati[[#This Row],[Chili]]+(Dati[[#This Row],[Etti]]/16),NA())","v":{"$error":"#N/A"}}]
[null,"24 mesi",null,null,{"$f":"IF(COUNT(Dati[[#This Row],[Chili]:[Etti]])>0,Dati[[#This Row],[Chili]]+(Dati[[#This Row],[Etti]]/16),NA())","v":{"$error":"#N/A"}}]
[null,"36 mesi",null,null,{"$f":"IF(COUNT(Dati[[#This Row],[Chili]:[Etti]])>0,Dati[[#This Row],[Chili]]+(Dati[[#This Row],[Etti]]/16),NA())","v":{"$error":"#N/A"}}]

{"sheet":"GRAFICO CRESCITA","index":1,"n_rows":1,"n_cols":2,"rows_kept":1,"merged":[[0,1,1,1]]}
[null,"GRAFICO CRESCITA DEL BAMBINO"]